[Event "*** Titled Tuesday 3|2 Blitz (Early)"]
[Site "Chess.com"]
[Date "2017.01.03"]
[Round "8"]
[White "bugsbunny444"]
[Black "MFBerna"]
[Result "0-1"]
[WhiteElo "2332"]
[BlackElo "2199"]
[TimeControl "180+2"]
[EndTime "12:48:40 PST"]
[Termination "MFBerna won by resignation"]

1. Nf3 {[%clk 0:03:02]} 1... d5 {[%clk 0:02:59.8]} 2. c4 {[%clk 0:02:59.2]} 2...
c6 {[%clk 0:02:59.5]} 3. g3 {[%clk 0:02:58.7]} 3... Nf6 {[%clk 0:03:00.3]} 4.
Bg2 {[%clk 0:03:00.3]} 4... g6 {[%clk 0:03:00.7]} 5. Qa4 {[%clk 0:03:00.4]} 5...
Nbd7 {[%clk 0:02:58.3]} 6. cxd5 {[%clk 0:02:58.9]} 6... cxd5 {[%clk 0:02:57.5]}
7. O-O {[%clk 0:02:56.8]} 7... Bg7 {[%clk 0:02:57.3]} 8. d4 {[%clk 0:02:58.5]}
8... O-O {[%clk 0:02:57.5]} 9. Na3 {[%clk 0:03:00.1]} 9... Ne4 {[%clk
0:02:56.5]} 10. Bf4 {[%clk 0:02:57.7]} 10... b6 {[%clk 0:02:53.4]} 11. Qc6
{[%clk 0:02:36.3]} 11... Ba6 {[%clk 0:02:53.9]} 12. Qxd5 {[%clk 0:02:27.9]}
12... Nef6 {[%clk 0:02:52.9]} 13. Qb3 {[%clk 0:02:18.1]} 13... Bxe2 {[%clk
0:02:52.6]} 14. Rfe1 {[%clk 0:02:19.8]} 14... Ba6 {[%clk 0:02:52.4]} 15. Ne5
{[%clk 0:02:12.3]} 15... e6 {[%clk 0:02:40.8]} 16. Nc6 {[%clk 0:02:05]} 16...
Qe8 {[%clk 0:02:38.9]} 17. d5 {[%clk 0:01:59.7]} 17... Nc5 {[%clk 0:02:38.9]}
18. Qc2 {[%clk 0:00:38.7]} 18... Nd3 {[%clk 0:02:37.4]} 19. dxe6 {[%clk
0:00:35]} 19... Nxe1 {[%clk 0:02:37]} 20. Rxe1 {[%clk 0:00:33.2]} 20... fxe6
{[%clk 0:02:34.1]} 21. Bh3 {[%clk 0:00:23.5]} 21... Bc8 {[%clk 0:02:02]} 22. Bd6
{[%clk 0:00:20]} 22... Rf7 {[%clk 0:01:59.2]} 23. Ne5 {[%clk 0:00:21.4]} 23...
Nd5 {[%clk 0:01:52.1]} 24. Nxf7 {[%clk 0:00:19.1]} 24... Qxf7 {[%clk 0:01:54]}
25. Qe4 {[%clk 0:00:11.3]} 25... Bxb2 {[%clk 0:01:46.3]} 26. Nc4 {[%clk
0:00:08.1]} 26... Bc3 {[%clk 0:01:46.8]} 27. Re2 {[%clk 0:00:05.8]} 27... Bd7
{[%clk 0:01:44.1]} 28. Ne5 {[%clk 0:00:06.3]} 28... Bxe5 {[%clk 0:01:38.5]} 29.
Qxe5 {[%clk 0:00:05.2]} 29... Re8 {[%clk 0:01:36.7]} 30. f4 {[%clk 0:00:05.7]}
30... Qf6 {[%clk 0:01:29.9]} 31. Bg2 {[%clk 0:00:03]} 31... Qxe5 {[%clk
0:01:28.2]} 32. Rxe5 {[%clk 0:00:04.9]} 32... Bc6 {[%clk 0:01:23.9]} 33. Bh3
{[%clk 0:00:03]} 33... Kf7 {[%clk 0:01:24.3]} 34. Re2 {[%clk 0:00:04.7]} 34...
Bd7 {[%clk 0:01:20.4]} 35. Be5 {[%clk 0:00:05.6]} 35... Rc8 {[%clk 0:01:20.6]}
36. Kg2 {[%clk 0:00:05.4]} 36... Rc4 {[%clk 0:01:17]} 37. Kf2 {[%clk 0:00:06.1]}
37... Nb4 {[%clk 0:01:11.5]} 38. Bb8 {[%clk 0:00:06.1]} 38... a5 {[%clk
0:01:10.6]} 39. Rd2 {[%clk 0:00:04.8]} 39... Bc6 {[%clk 0:01:08.3]} 40. Bc7
{[%clk 0:00:05.2]} 40... Nd5 {[%clk 0:01:03.6]} 41. Be5 {[%clk 0:00:06.3]} 41...
Nc3 {[%clk 0:00:59.7]} 42. Bxc3 {[%clk 0:00:04.4]} 42... Rxc3 {[%clk 0:01:01.6]}
43. Rd6 {[%clk 0:00:04.9]} 43... Rc2+ {[%clk 0:00:58.6]} 44. Ke3 {[%clk
0:00:05.8]} 44... Bd5 {[%clk 0:00:54.9]} 45. a4 {[%clk 0:00:05.9]} 45... Rxh2
{[%clk 0:00:53.6]} 46. Bf1 {[%clk 0:00:04.5]} 46... Rb2 {[%clk 0:00:53.5]} 47.
Bb5 {[%clk 0:00:05.4]} 47... Rb3+ {[%clk 0:00:49.9]} 48. Kf2 {[%clk 0:00:05.3]}
48... Rf3+ {[%clk 0:00:50.6]} 49. Ke2 {[%clk 0:00:03.8]} 49... Rxg3 {[%clk
0:00:51.3]} 50. Rd7+ {[%clk 0:00:03.9]} 50... Kf6 {[%clk 0:00:47]} 51. Rxh7
{[%clk 0:00:04.9]} 51... Rg4 {[%clk 0:00:40.6]} 52. Ke3 {[%clk 0:00:05.3]} 52...
Rg3+ {[%clk 0:00:41.2]} 53. Kd4 {[%clk 0:00:06.2]} 53... Rf3 {[%clk 0:00:41.2]}
54. Rh4 {[%clk 0:00:04.4]} 54... Rb3 {[%clk 0:00:33.3]} 55. Rh8 {[%clk
0:00:04.4]} 55... Rb4+ {[%clk 0:00:33.4]} 56. Ke3 {[%clk 0:00:03.3]} 56... Re4+
{[%clk 0:00:34.1]} 57. Kd3 {[%clk 0:00:04.8]} 57... Rxf4 {[%clk 0:00:34.2]} 58.
Rb8 {[%clk 0:00:05.3]} 58... Rb4 {[%clk 0:00:29.2]} 59. Rxb6 {[%clk 0:00:05.2]}
59... Bc4+ {[%clk 0:00:29.1]} 60. Kc3 {[%clk 0:00:04.6]} 60... Bb3 {[%clk
0:00:21.3]} 61. Ra6 {[%clk 0:00:02.7]} 61... Bxa4 {[%clk 0:00:21.9]} 62. Bc4
{[%clk 0:00:03.8]} 62... Bd7 {[%clk 0:00:19.3]} 63. Rxa5 {[%clk 0:00:04.8]}
63... Rb6 {[%clk 0:00:18.3]} 64. Rc5 {[%clk 0:00:05.4]} 64... Rd6 {[%clk
0:00:17.6]} 65. Bd3 {[%clk 0:00:05.4]} 65... g5 {[%clk 0:00:16.4]} 66. Kd2
{[%clk 0:00:06.7]} 66... e5 {[%clk 0:00:14.4]} 67. Ke3 {[%clk 0:00:08]} 67...
Bf5 {[%clk 0:00:13.6]} 68. Be2 {[%clk 0:00:07.2]} 68... g4 {[%clk 0:00:14]} 69.
Kf2 {[%clk 0:00:04.8]} 69... Rd2 {[%clk 0:00:14.2]} 70. Ke3 {[%clk 0:00:05.6]}
70... Ra2 {[%clk 0:00:13.6]} 71. Rc7 {[%clk 0:00:04.3]} 71... Ra3+ {[%clk
0:00:13.7]} 72. Kf2 {[%clk 0:00:05.2]} 72... Kg5 {[%clk 0:00:14.5]} 73. Rg7+
{[%clk 0:00:05.7]} 73... Kf4 {[%clk 0:00:15.3]} 74. Rf7 {[%clk 0:00:03.2]} 74...
Ra2 {[%clk 0:00:15.6]} 75. Ke1 {[%clk 0:00:04]} 75... Ke3 {[%clk 0:00:15.3]} 76.
Bd1 {[%clk 0:00:03]} 76... Bd3 {[%clk 0:00:11.9]} 77. Bxg4 {[%clk 0:00:02.6]}
77... Ra1+ {[%clk 0:00:12.7]} 78. Bd1 {[%clk 0:00:04.1]} 78... Bc2 {[%clk
0:00:13.1]} 79. Rf3+ {[%clk 0:00:04.7]} 79... Ke4 {[%clk 0:00:13.5]} 80. Re3+
{[%clk 0:00:04.7]} 80... Kxe3 {[%clk 0:00:13.4]} 81. Kf1 {[%clk 0:00:04.5]} 0-1

[Event "*** Titled Tuesday 3|2 Blitz (Early)"]
[Site "Chess.com"]
[Date "2017.01.03"]
[Round "9"]
[White "RamonManon0g"]
[Black "FrankieJay"]
[Result "1-0"]
[WhiteElo "2274"]
[BlackElo "2260"]
[TimeControl "180+2"]
[EndTime "12:51:17 PST"]
[Termination "RamonManon0g won by resignation"]

1. d4 {[%clk 0:02:40]} 1... Nf6 {[%clk 0:02:59.1]} 2. Bg5 {[%clk 0:02:31.8]}
2... Ne4 {[%clk 0:02:59.3]} 3. Bf4 {[%clk 0:02:32.7]} 3... c5 {[%clk 0:03:00.2]}
4. d5 {[%clk 0:02:33.9]} 4... Qb6 {[%clk 0:03:01]} 5. Nd2 {[%clk 0:02:35]} 5...
Qxb2 {[%clk 0:03:01.1]} 6. Nxe4 {[%clk 0:02:33.4]} 6... Qb4+ {[%clk 0:03:02.3]}
7. Qd2 {[%clk 0:02:26.9]} 7... Qxe4 {[%clk 0:03:03.2]} 8. Nf3 {[%clk 0:02:27.3]}
8... d6 {[%clk 0:02:52.6]} 9. e3 {[%clk 0:02:25.4]} 9... g6 {[%clk 0:02:46.9]}
10. Rb1 {[%clk 0:02:11.3]} 10... Bg7 {[%clk 0:02:41.3]} 11. Bd3 {[%clk
0:02:07.9]} 11... Qa4 {[%clk 0:02:34.7]} 12. Bb5+ {[%clk 0:02:05.9]} 1-0

[Event "*** Titled Tuesday 3|2 Blitz (Early)"]
[Site "Chess.com"]
[Date "2017.01.03"]
[Round "9"]
[White "HK1974"]
[Black "VMikhalevski"]
[Result "0-1"]
[WhiteElo "2164"]
[BlackElo "2445"]
[TimeControl "180+2"]
[EndTime "12:53:11 PST"]
[Termination "VMikhalevski won on time"]

1. e4 {[%clk 0:00:18.7]} 1... e5 {[%clk 0:02:58.9]} 2. Nf3 {[%clk 0:00:19.3]}
2... Nc6 {[%clk 0:03:00.3]} 3. Bb5 {[%clk 0:00:18.9]} 3... a6 {[%clk 0:03:00.6]}
4. Ba4 {[%clk 0:00:11.5]} 4... Nf6 {[%clk 0:03:02]} 5. O-O {[%clk 0:00:11.7]}
5... Nxe4 {[%clk 0:03:03]} 6. d4 {[%clk 0:00:12.6]} 6... b5 {[%clk 0:03:04.5]}
7. Bb3 {[%clk 0:00:12.5]} 7... d5 {[%clk 0:03:06.1]} 8. dxe5 {[%clk 0:00:10.6]}
8... Be6 {[%clk 0:03:07.6]} 9. c3 {[%clk 0:00:09.2]} 9... Bc5 {[%clk 0:03:07.2]}
10. Nbd2 {[%clk 0:00:09]} 10... O-O {[%clk 0:03:08.7]} 11. h3 {[%clk 0:00:02.9]}
11... Kh8 {[%clk 0:03:00.5]} 0-1

[Event "*** Titled Tuesday 3|2 Blitz (Early)"]
[Site "Chess.com"]
[Date "2017.01.03"]
[Round "9"]
[White "ajkom197"]
[Black "Dr-Bassem"]
[Result "0-1"]
[WhiteElo "2326"]
[BlackElo "2649"]
[TimeControl "180+2"]
[EndTime "12:53:22 PST"]
[Termination "Dr-Bassem won by resignation"]

1. d4 {[%clk 0:03:01.2]} 1... f5 {[%clk 0:02:57.9]} 2. g3 {[%clk 0:03:01.6]}
2... Nf6 {[%clk 0:02:58.9]} 3. Bg2 {[%clk 0:03:03]} 3... e6 {[%clk 0:03:00.5]}
4. c4 {[%clk 0:03:03.9]} 4... Be7 {[%clk 0:03:01.6]} 5. Nc3 {[%clk 0:03:04.8]}
5... O-O {[%clk 0:03:03.5]} 6. e3 {[%clk 0:03:05.9]} 6... d6 {[%clk 0:03:04.2]}
7. Nge2 {[%clk 0:03:06.9]} 7... e5 {[%clk 0:03:02.7]} 8. O-O {[%clk 0:03:03.6]}
8... c6 {[%clk 0:03:03.8]} 9. b3 {[%clk 0:03:02]} 9... Qe8 {[%clk 0:02:55.6]}
10. Qd2 {[%clk 0:02:56.8]} 10... Na6 {[%clk 0:02:49.4]} 11. Bb2 {[%clk 0:02:50]}
11... Qh5 {[%clk 0:02:39.1]} 12. f4 {[%clk 0:02:35.6]} 12... e4 {[%clk
0:02:33.7]} 13. d5 {[%clk 0:02:32.4]} 13... Nb4 {[%clk 0:02:24.8]} 14. dxc6
{[%clk 0:02:30.6]} 14... bxc6 {[%clk 0:02:25.1]} 15. Ba3 {[%clk 0:02:27.7]}
15... a5 {[%clk 0:02:18.9]} 16. Nd4 {[%clk 0:02:22.9]} 16... Bd7 {[%clk
0:02:17.3]} 17. Nc2 {[%clk 0:02:23]} 17... Nxc2 {[%clk 0:02:00.2]} 18. Qxc2
{[%clk 0:02:22.7]} 18... Ng4 {[%clk 0:02:01]} 19. Rfe1 {[%clk 0:02:13.8]} 19...
Qxh2+ {[%clk 0:02:00.2]} 20. Kf1 {[%clk 0:02:15]} 20... Qxg3 {[%clk 0:02:00.7]}
21. Rad1 {[%clk 0:02:16.2]} 21... Nxe3+ {[%clk 0:01:47.7]} 22. Rxe3 {[%clk
0:02:06]} 22... Qxe3 {[%clk 0:01:49.6]} 23. Ne2 {[%clk 0:02:06.9]} 23... Bh4
{[%clk 0:01:45.6]} 0-1

[Event "*** Titled Tuesday 3|2 Blitz (Early)"]
[Site "Chess.com"]
[Date "2017.01.03"]
[Round "9"]
[White "FearlessKing64"]
[Black "alturas_pacificas"]
[Result "0-1"]
[WhiteElo "2062"]
[BlackElo "2022"]
[TimeControl "180+2"]
[EndTime "12:54:05 PST"]
[Termination "alturas_pacificas won by resignation"]

1. e4 {[%clk 0:03:02]} 1... e5 {[%clk 0:03:00.3]} 2. Nf3 {[%clk 0:03:02.5]} 2...
Nf6 {[%clk 0:03:00.7]} 3. Nxe5 {[%clk 0:03:02.3]} 3... d6 {[%clk 0:03:00.9]} 4.
Nf3 {[%clk 0:03:03.5]} 4... Nxe4 {[%clk 0:03:01.8]} 5. Nc3 {[%clk 0:03:05.2]}
5... Nxc3 {[%clk 0:03:02.8]} 6. dxc3 {[%clk 0:03:07.1]} 6... Be7 {[%clk
0:03:04.2]} 7. Be3 {[%clk 0:02:44.2]} 7... Nd7 {[%clk 0:03:05.1]} 8. Qd2 {[%clk
0:02:45.6]} 8... Ne5 {[%clk 0:03:05.4]} 9. Be2 {[%clk 0:02:40.4]} 9... Be6
{[%clk 0:03:05.6]} 10. O-O-O {[%clk 0:02:39.6]} 10... O-O {[%clk 0:03:04.5]} 11.
Kb1 {[%clk 0:02:37.7]} 11... a5 {[%clk 0:03:03.8]} 12. Nd4 {[%clk 0:02:38.7]}
12... Nc4 {[%clk 0:02:54.5]} 13. Bxc4 {[%clk 0:02:34.3]} 13... Bxc4 {[%clk
0:02:56.4]} 14. b3 {[%clk 0:02:32.9]} 14... Bd5 {[%clk 0:02:53.1]} 15. c4 {[%clk
0:02:33.6]} 15... Be4 {[%clk 0:02:42]} 16. f3 {[%clk 0:02:24.3]} 16... Bg6
{[%clk 0:02:40.3]} 17. h4 {[%clk 0:02:23.5]} 17... Bxh4 {[%clk 0:02:33.2]} 18.
g4 {[%clk 0:02:18.5]} 18... Re8 {[%clk 0:02:09.8]} 19. Nf5 {[%clk 0:02:14.1]}
19... Bf6 {[%clk 0:01:58.9]} 20. Bf4 {[%clk 0:01:40.4]} 20... a4 {[%clk
0:01:55.8]} 21. Nh4 {[%clk 0:01:20.4]} 21... Bxh4 {[%clk 0:01:55.3]} 22. Qh2
{[%clk 0:01:09.8]} 22... axb3 {[%clk 0:01:47.9]} 23. axb3 {[%clk 0:01:07.4]} 0-1

[Event "*** Titled Tuesday 3|2 Blitz (Early)"]
[Site "Chess.com"]
[Date "2017.01.03"]
[Round "9"]
[White "cassoulet"]
[Black "Blitzstream"]
[Result "1-0"]
[WhiteElo "2337"]
[BlackElo "2506"]
[TimeControl "180+2"]
[EndTime "12:54:12 PST"]
[Termination "cassoulet won by checkmate"]

1. e4 {[%clk 0:03:02]} 1... d5 {[%clk 0:03:00.6]} 2. exd5 {[%clk 0:03:00.8]}
2... Qxd5 {[%clk 0:03:02.5]} 3. Nc3 {[%clk 0:03:02.3]} 3... Qa5 {[%clk
0:03:03.3]} 4. d4 {[%clk 0:03:03.7]} 4... Nf6 {[%clk 0:03:04.6]} 5. Bd2 {[%clk
0:03:04.8]} 5... c6 {[%clk 0:03:04.3]} 6. Nf3 {[%clk 0:03:06.2]} 6... Bf5 {[%clk
0:03:04.7]} 7. Bc4 {[%clk 0:03:06.2]} 7... e6 {[%clk 0:03:04.8]} 8. Nd5 {[%clk
0:03:07.5]} 8... Qd8 {[%clk 0:03:05.6]} 9. Nxf6+ {[%clk 0:03:08.9]} 9... Qxf6
{[%clk 0:03:07.5]} 10. c3 {[%clk 0:03:03.7]} 10... Bd6 {[%clk 0:03:05.8]} 11.
Qe2 {[%clk 0:03:03.2]} 11... Nd7 {[%clk 0:02:37.8]} 12. O-O-O {[%clk 0:03:01]}
12... b5 {[%clk 0:02:34.1]} 13. Bb3 {[%clk 0:03:00.8]} 13... O-O {[%clk
0:02:27]} 14. h4 {[%clk 0:03:01.1]} 14... Bg4 {[%clk 0:01:59.4]} 15. Bc2 {[%clk
0:02:58.3]} 15... h6 {[%clk 0:01:48.4]} 16. Kb1 {[%clk 0:02:51.2]} 16... Nb6
{[%clk 0:01:47.2]} 17. Bg5 {[%clk 0:02:15.1]} 17... hxg5 {[%clk 0:01:30]} 18.
hxg5 {[%clk 0:02:17]} 18... Qxg5 {[%clk 0:01:02.2]} 19. Bh7+ {[%clk 0:02:05.1]}
19... Kh8 {[%clk 0:01:02]} 20. Qc2 {[%clk 0:01:57.2]} 20... Bxf3 {[%clk
0:00:45.7]} 21. Bg8+ {[%clk 0:01:55.5]} 21... Qh6 {[%clk 0:00:42.1]} 22. Rxh6+
{[%clk 0:01:55.2]} 22... gxh6 {[%clk 0:00:42.6]} 23. Qh7# {[%clk 0:01:55.8]} 1-0

[Event "*** Titled Tuesday 3|2 Blitz (Early)"]
[Site "Chess.com"]
[Date "2017.01.03"]
[Round "9"]
[White "162a54f5d"]
[Black "yian123"]
[Result "1/2-1/2"]
[WhiteElo "2387"]
[BlackElo "2383"]
[TimeControl "180+2"]
[EndTime "12:54:21 PST"]
[Termination "Game drawn by agreement"]

1. d4 {[%clk 0:03:02]} 1... d5 {[%clk 0:02:59]} 2. c4 {[%clk 0:03:02.1]} 2... c6
{[%clk 0:03:00.1]} 3. Nf3 {[%clk 0:03:02]} 3... Nf6 {[%clk 0:03:01]} 4. e3
{[%clk 0:03:01.8]} 4... a6 {[%clk 0:03:02]} 5. Nbd2 {[%clk 0:02:55.1]} 5... g6
{[%clk 0:02:56]} 6. b4 {[%clk 0:02:49.8]} 6... Bg7 {[%clk 0:02:56.1]} 7. Bb2
{[%clk 0:02:50.3]} 7... O-O {[%clk 0:02:56.6]} 8. Be2 {[%clk 0:02:50.2]} 8...
Qb6 {[%clk 0:02:50.9]} 9. Qb3 {[%clk 0:02:43.7]} 9... Bg4 {[%clk 0:02:46.2]} 10.
c5 {[%clk 0:02:42.8]} 10... Qc7 {[%clk 0:02:46.3]} 11. a4 {[%clk 0:02:44.2]}
11... Nbd7 {[%clk 0:02:46.2]} 12. O-O {[%clk 0:02:35.5]} 12... Bxf3 {[%clk
0:02:40.2]} 13. Nxf3 {[%clk 0:02:33.2]} 13... Ne4 {[%clk 0:02:39.8]} 14. b5
{[%clk 0:02:34.6]} 14... axb5 {[%clk 0:02:35.6]} 15. axb5 {[%clk 0:02:35.6]}
15... e5 {[%clk 0:02:32.5]} 16. b6 {[%clk 0:02:33.9]} 16... Qb8 {[%clk
0:02:30.6]} 17. Rxa8 {[%clk 0:02:34.1]} 17... Qxa8 {[%clk 0:02:31.4]} 18. Nxe5
{[%clk 0:02:35.2]} 18... Nexc5 {[%clk 0:02:20.7]} 19. dxc5 {[%clk 0:02:30.1]}
19... Nxe5 {[%clk 0:02:20]} 20. Ra1 {[%clk 0:02:25.7]} 20... Qb8 {[%clk
0:01:40.9]} 21. Ra7 {[%clk 0:02:21.5]} 21... Nd7 {[%clk 0:01:41.3]} 22. Bxg7
{[%clk 0:02:20.6]} 22... Kxg7 {[%clk 0:01:41.9]} 23. Qc3+ {[%clk 0:02:21.4]}
23... Kg8 {[%clk 0:01:33.5]} 24. Ba6 {[%clk 0:02:20.1]} 24... Nxc5 {[%clk
0:01:28.5]} 25. Qxc5 {[%clk 0:02:19.4]} 25... bxa6 {[%clk 0:01:29.8]} 26. Qxc6
{[%clk 0:02:19.8]} 26... Qe5 {[%clk 0:01:30.1]} 27. Rxa6 {[%clk 0:02:16.5]}
27... d4 {[%clk 0:01:29.5]} 28. Qf3 {[%clk 0:01:54.4]} 28... Qb5 {[%clk
0:01:24.6]} 29. Ra1 {[%clk 0:01:54.9]} 29... Qxb6 {[%clk 0:01:23.3]} 30. exd4
{[%clk 0:01:56.2]} 30... Qxd4 {[%clk 0:01:24]} 31. Rd1 {[%clk 0:01:57.4]} 31...
Qe5 {[%clk 0:01:21.2]} 32. g3 {[%clk 0:01:58.4]} 1/2-1/2

[Event "*** Titled Tuesday 3|2 Blitz (Early)"]
[Site "Chess.com"]
[Date "2017.01.03"]
[Round "9"]
[White "E-Shaposhnikov"]
[Black "bivark"]
[Result "1-0"]
[WhiteElo "2731"]
[BlackElo "2378"]
[TimeControl "180+2"]
[EndTime "12:54:58 PST"]
[Termination "E-Shaposhnikov won by resignation"]

1. Nf3 {[%clk 0:02:31.8]} 1... d5 {[%clk 0:02:59]} 2. d4 {[%clk 0:02:30.8]} 2...
Nf6 {[%clk 0:02:58.2]} 3. c4 {[%clk 0:02:31.5]} 3... c6 {[%clk 0:02:59.3]} 4. e3
{[%clk 0:02:31.2]} 4... a6 {[%clk 0:02:58]} 5. Bd3 {[%clk 0:02:27.3]} 5... Bg4
{[%clk 0:02:57.5]} 6. Nbd2 {[%clk 0:02:26.8]} 6... e6 {[%clk 0:02:58.2]} 7. b3
{[%clk 0:02:25.9]} 7... Nbd7 {[%clk 0:02:59.3]} 8. Bb2 {[%clk 0:02:25.6]} 8...
b5 {[%clk 0:02:58]} 9. O-O {[%clk 0:02:21.9]} 9... Bd6 {[%clk 0:02:58.9]} 10.
Qc2 {[%clk 0:02:22.6]} 10... Qb8 {[%clk 0:02:57.4]} 11. a4 {[%clk 0:02:10.8]}
11... b4 {[%clk 0:02:25.2]} 12. h3 {[%clk 0:02:01.1]} 12... Bh5 {[%clk
0:02:25.6]} 13. cxd5 {[%clk 0:01:49.1]} 13... cxd5 {[%clk 0:02:26]} 14. Qc6
{[%clk 0:01:49.8]} 14... a5 {[%clk 0:01:50.8]} 15. Ne5 {[%clk 0:01:47.7]} 15...
Ke7 {[%clk 0:01:43.8]} 16. Rac1 {[%clk 0:01:38.8]} 16... Nxe5 {[%clk 0:01:38.1]}
17. dxe5 {[%clk 0:01:37.4]} 17... Bxe5 {[%clk 0:01:38.7]} 18. Bxe5 {[%clk
0:01:34]} 18... Qxe5 {[%clk 0:01:39.7]} 19. Qb7+ {[%clk 0:01:35.5]} 19... Nd7
{[%clk 0:01:38.7]} 20. Rc7 {[%clk 0:01:35.5]} 20... Rad8 {[%clk 0:01:24.9]} 21.
Bb5 {[%clk 0:01:35.7]} 21... Qd6 {[%clk 0:01:12.9]} 22. Rfc1 {[%clk 0:01:36.4]}
22... f6 {[%clk 0:01:10.7]} 23. f4 {[%clk 0:01:25]} 23... Be8 {[%clk 0:01:10.4]}
24. R1c6 {[%clk 0:01:21.4]} 24... Rb8 {[%clk 0:00:48.3]} 25. Qxb8 {[%clk
0:01:18.2]} 25... Qxc6 {[%clk 0:00:49.5]} 26. Bxc6 {[%clk 0:01:15.9]} 1-0

[Event "*** Titled Tuesday 3|2 Blitz (Early)"]
[Site "Chess.com"]
[Date "2017.01.03"]
[Round "9"]
[White "eldur16"]
[Black "PelinGorki"]
[Result "1-0"]
[WhiteElo "2143"]
[BlackElo "2383"]
[TimeControl "180+2"]
[EndTime "12:56:17 PST"]
[Termination "eldur16 won by resignation"]

1. d4 {[%clk 0:03:02]} 1... Nf6 {[%clk 0:03:01]} 2. c4 {[%clk 0:03:02.5]} 2...
e5 {[%clk 0:03:01.7]} 3. dxe5 {[%clk 0:03:02.6]} 3... Ng4 {[%clk 0:03:03.3]} 4.
Bf4 {[%clk 0:03:02.6]} 4... g5 {[%clk 0:03:03.8]} 5. Bd2 {[%clk 0:03:00.2]} 5...
Bg7 {[%clk 0:03:03.4]} 6. Nf3 {[%clk 0:03:00]} 6... Nxe5 {[%clk 0:03:04.2]} 7.
Nxe5 {[%clk 0:02:57]} 7... Bxe5 {[%clk 0:03:04.8]} 8. Bc3 {[%clk 0:02:58]} 8...
Bxc3+ {[%clk 0:02:59.3]} 9. Nxc3 {[%clk 0:02:58]} 9... d6 {[%clk 0:02:59.8]} 10.
g3 {[%clk 0:02:58.4]} 10... Nc6 {[%clk 0:02:59.9]} 11. Bg2 {[%clk 0:02:59]}
11... Bd7 {[%clk 0:03:01.2]} 12. Qd2 {[%clk 0:02:58.9]} 12... Ne5 {[%clk
0:02:57.4]} 13. b3 {[%clk 0:02:57.8]} 13... Bc6 {[%clk 0:02:57.7]} 14. Nd5
{[%clk 0:02:57.4]} 14... h6 {[%clk 0:02:55.4]} 15. h4 {[%clk 0:02:56.5]} 15...
g4 {[%clk 0:02:53.7]} 16. Qf4 {[%clk 0:02:56.3]} 16... Bxd5 {[%clk 0:02:53.3]}
17. Bxd5 {[%clk 0:02:56.4]} 17... c6 {[%clk 0:02:54.9]} 18. Bg2 {[%clk
0:02:56.4]} 18... Qa5+ {[%clk 0:02:56.5]} 19. Qd2 {[%clk 0:02:45.3]} 19... Qxd2+
{[%clk 0:02:55]} 20. Kxd2 {[%clk 0:02:45.9]} 20... Ke7 {[%clk 0:02:55.6]} 21.
Rhc1 {[%clk 0:02:30.9]} 21... Rad8 {[%clk 0:02:56.3]} 22. Ke1 {[%clk 0:02:30.3]}
22... f5 {[%clk 0:02:55.9]} 23. Rc3 {[%clk 0:02:30.3]} 23... Rhf8 {[%clk
0:02:56.5]} 24. e3 {[%clk 0:02:27.8]} 24... Kf6 {[%clk 0:02:54.9]} 25. Ke2
{[%clk 0:02:27.1]} 25... Rfe8 {[%clk 0:02:55.2]} 26. Rd1 {[%clk 0:02:26.7]}
26... Re6 {[%clk 0:02:51.7]} 27. Rd4 {[%clk 0:02:23.2]} 27... Nf7 {[%clk
0:02:44.8]} 28. b4 {[%clk 0:02:21.1]} 28... Ke7 {[%clk 0:02:43]} 29. b5 {[%clk
0:02:21.1]} 29... Kd7 {[%clk 0:02:44.1]} 30. c5 {[%clk 0:02:11.6]} 30... d5
{[%clk 0:02:40.7]} 31. bxc6+ {[%clk 0:02:04.6]} 31... bxc6 {[%clk 0:02:42.6]}
32. Rb3 {[%clk 0:02:05.4]} 32... Rc8 {[%clk 0:02:42.3]} 33. Ra4 {[%clk
0:01:59.9]} 33... Rc7 {[%clk 0:02:43]} 34. Kd2 {[%clk 0:01:53.3]} 34... Re8
{[%clk 0:02:43.9]} 35. Bf1 {[%clk 0:01:53.5]} 35... Ne5 {[%clk 0:02:43.9]} 36.
Kc3 {[%clk 0:01:50.2]} 36... Ng6 {[%clk 0:02:40.1]} 37. Be2 {[%clk 0:01:49.5]}
37... Nf8 {[%clk 0:02:41.4]} 38. Bd3 {[%clk 0:01:46.1]} 38... Ke6 {[%clk
0:02:38.9]} 39. Rf4 {[%clk 0:01:32.9]} 39... Rf7 {[%clk 0:02:37.6]} 40. a4
{[%clk 0:01:28.5]} 40... Ng6 {[%clk 0:02:37.6]} 41. Rfb4 {[%clk 0:01:27.2]}
41... Ke5 {[%clk 0:02:33.2]} 42. Rb7 {[%clk 0:01:24.9]} 42... Ree7 {[%clk
0:02:34.1]} 43. Rb8 {[%clk 0:01:25.4]} 43... Nf8 {[%clk 0:02:31.2]} 44. Rc8
{[%clk 0:01:21.3]} 44... Rc7 {[%clk 0:02:32.6]} 45. Re8+ {[%clk 0:01:20.6]}
45... Ne6 {[%clk 0:02:33.2]} 46. Rbb8 {[%clk 0:01:19.4]} 46... Rfe7 {[%clk
0:02:32.5]} 47. Kb4 {[%clk 0:01:17.6]} 47... d4 {[%clk 0:02:32.1]} 48. exd4+
{[%clk 0:01:13.4]} 48... Nxd4 {[%clk 0:02:32]} 49. Kc4 {[%clk 0:01:09.2]} 49...
Ne6 {[%clk 0:02:30.5]} 50. a5 {[%clk 0:01:07.9]} 50... Red7 {[%clk 0:02:31.6]}
51. a6 {[%clk 0:01:05.9]} 51... Rd4+ {[%clk 0:02:32.8]} 52. Kc3 {[%clk
0:01:06.4]} 52... Rcd7 {[%clk 0:02:34.2]} 53. Bc4 {[%clk 0:01:07]} 53... Rxc4+
{[%clk 0:02:20.6]} 54. Kxc4 {[%clk 0:01:07.6]} 54... Rd5 {[%clk 0:02:20.2]} 55.
Rb7 {[%clk 0:01:00.8]} 55... Rxc5+ {[%clk 0:02:21.1]} 56. Kb4 {[%clk 0:01:01.7]}
56... Kd6 {[%clk 0:02:16.2]} 57. Rxe6+ {[%clk 0:01:01.6]} 1-0